Workbook

Sheet Food And Rent 2013-14 (hidden)
C2: SRI SAI SEVA SADAN
C3: 2013-14 (up to 02/14)
A4: FOOD EXPENSES
A6: DATE | B6: AMOUNT | C6: PARTICULARS
B7: A)Paid From Foreign Funds | D7: FOOD PROVISIONS | E7: MILK
A8: 02.04.2013 | B8: =SUM(D8:E8) -> 420 | C8: Gas | D8: 420 | E8: 0
A9: 27.04.2013 | B9: 2307 | C9: Food Provisions & Vegtables | D9: =1637+670 -> 2307 | E9: 0
A10: 18.06.2013 | B10: 5987 | C10: Food Provisions & Vegtables | D10: 5987 | E10: 0
A11: 25.06.2013 | B11: 830 | C11: Gas | D11: 830 | E11: 0
A12: 04.07.2013 | B12: 18008 | C12: Food Provisions & Vegtables, Milk | D12: 17742 | E12: 266
A13: 05.07.2013 | B13: 3348 | C13: Milk | D13: 0 | E13: =1116+2232 -> 3348
A14: 11.07.2013 | B14: 2199 | C14: Vegtables | D14: 2199 | E14: 0
A15: 26.07.2013 | B15: 1176 | C15: Vegtables | D15: 1176 | E15: 0
A16: 01.08.2013 | B16: 3216 | C16: Food Provisions & Vegtables, Milk, Gas | D16: =144+840 -> 984 | E16: 2232
A17: 28.08.2013 | B17: 20153 | C17: Food Provisions & Vegtables, Gas | D17: =16748+2775+630 -> 20153 | E17: 0
A18: 05.10.2013 | B18: 300 | C18: Vegtables | D18: 300 | E18: 0
A19: 17.10.2013 | B19: 9394 | C19: Food Provisions & Vegtables, Milk | D19: =8032+30 -> 8062 | E19: 1332
A20: 18.10.2013 | B20: 2200 | C20: Gas | D20: 2200 | E20: 0
A21: 24.10.2013 | B21: 618 | C21: Vegtables | D21: 618 | E21: 0
A22: 06.11.2013 | B22: 18050 | C22: Food Provisions & Milk | D22: 15890 | E22: 2160
A23: 19.11.2013 | B23: 5218 | C23: Food Provisions & Vegtables, Gas | D23: =1928+3150+140 -> 5218 | E23: 0
A24: 21.11.2013 | B24: 700 | C24: Vegtables | D24: 700 | E24: 0
A25: 30.11.2013 | B25: 592 | C25: Vegtables | D25: =527+65 -> 592 | E25: 0
A26: 06.12.2013 | B26: 18280 | C26: Food Provisions & Milk | D26: =16048 -> 16048 | E26: 2232
A27: 16.12.2013 | B27: 1271 | C27: Food Provisions & Vegtables | D27: =772+499 -> 1271 | E27: 0
A28: 31.12.2013 | B28: 3158 | C28: Food Provisions & Vegtables, Gas | D28: =477+451+2230 -> 3158 | E28: 0
A29: 06.02.2014 | B29: 18431 | C29: Food Provisions & Vegtables, Milk | D29: 16415 | E29: 2016
A30: 20.02.2014 | B30: 3805 | C30: Vegtables & Gas | D30: =1350+2455 -> 3805 | E30: 0
B31: =SUM(B8:B30) -> 139661
B32: B)Paid From Indian Funds
A33: 02.09.2013 | B33: =SUM(D33:E33) -> 2060 | C33: Gas | D33: 2060 | E33: 0
A34: 06.09.2013 | B34: 2160 | C34: Milk | D34: 0 | E34: 2160
A35: 08.09.2013 | B35: 14731 | C35: Food Provisions & Vegtables | D35: =14065+666 -> 14731 | E35: 0
A36: 29.09.2013 | B36: 1581 | C36: Food Provisions & Vegtables | D36: =1091+180+310 -> 1581 | E36: 0
A37: 06.01.2013 | B37: 1823 | C37: Milk | D37: 0 | E37: 1823
A38: 21.01.2014 | B38: 10335 | C38: Food Provisions & Vegtables | D38: =10153+182 -> 10335 | E38: 0
A39: 27.01.2013 | B39: 3586 | C39: Vegtables & Gas | D39: =911+2675 -> 3586 | E39: 0
B40: =SUM(B33:B39) -> 36276
A41: TOTAL | B41: =B31+B40 -> 175937 | D41: =SUM(D8:D39) -> 158368 | E41: =SUM(E8:E39) -> 17569
A43: RENT
A44: 05.05.2013 | C44: 35000
A45: 10.07.2013 | C45: 70000
A46: 01.08.2013 | C46: 35000
A47: 05.09.2013 | C47: 35000
A48: 04.10.2013 | C48: 35000
A49: 06.11.2013 | C49: 35000
A50: 06.12.2013 | C50: 35000
A51: 04.01.2013 | C51: 35000
A52: 06.02.2013 | C52: 35000
A53: TOTAL | C53: =SUM(C44:C52) -> 350000

Sheet Food and Rent 2012-13 (hidden)
B4: SRI SAI SEVA SADAN
B5: 2012-13
A7: FOOD EXPENSES
A9: DATE | B9: AMOUNT | C9: PARTICULARS
B10: A)Paid From Foreign Funds | D10: FOOD PROVISIONS | E10: MILK
A12: 8.10.2012 | B12: =SUM(D12:E12) -> 10060 | C12: Vegtables & Food Provisions, Milk | D12: =500+8750+522 -> 9772 | E12: 288
A13: 15.10.2012 | B13: =SUM(D13:E13) -> 2607 | C13: Vegtables & Gas,milk | D13: =1230+501+60 -> 1791 | E13: 816
A14: 31.10.2012 | B14: 1384 | C14: Vegtables & Gas,milk | D14: =420+562+62 -> 1044 | E14: 340
A15: 12.11.2012 | B15: 17409 | C15: Food Provisions & Vegtables, Milk | D15: =115+14303+531+420 -> 15369 | E15: 2040
A16: 15.11.2012 | B16: 521 | C16: Vegtables | D16: 521 | E16: 0
A17: 20.11.2012 | B17: 23776 | C17: Food Provisions & Vegtables, Milk | D17: =1663+1970+17750+285 -> 21668 | E17: 2108
A18: 31.12.2012 | B18: 3271 | C18: Food Provisions & Vegtables, Gas | D18: =1737+980+554 -> 3271 | E18: 0
A19: 05.01.2013 | B19: 13077 | C19: Food Provisions | D19: 13077 | E19: 0
A20: 29.01.2013 | B20: 3402 | C20: Vegtables & Gas,milk | D20: =910+980 -> 1890 | E20: 1512
A21: 23.02.2013 | B21: =SUM(D21:E21) -> 18943 | C21: Food Provisions & Vegtables, Milk | D21: =2670+12270+1469+518 -> 16927 | E21: 2016
A22: 18.03.2013 | B22: =SUM(D22:E22) -> 16904 | C22: Food Provisions & Vegtables, Milk | D22: =12964+1191+420+97 -> 14672 | E22: 2232
A23: 21.03.2013 | B23: 1000 | C23: Gas | D23: 1000 | E23: 0
A24: 26.03.2013 | B24: 469 | C24: Vegtables | D24: 469 | E24: 0
A25: 30.03.2013 | B25: 12247 | C25: Food Provisions & Milk | D25: 10447 | E25: 1800
B26: =SUM(B12:B25) -> 125070
B27: B)Paid From Indian Funds
A28: 30.04.2012 | B28: =SUM(D28:E28) -> 13467 | C28: Food Provisions & Vegtables, Gas,Milk | D28: =9716+1120+1167 -> 12003 | E28: =1280+184 -> 1464
A29: 28.06.2012 | B29: 6005 | C29: Food Provisions & Vegtables, Gas,Milk | D29: =4756+789+410 -> 5955 | E29: 50
A30: 27.07.2012 | B30: 5241 | C30: Vegtables & Milk | D30: 2373 | E30: =2780+88 -> 2868
A31: 30.07.2012 | B31: 14479 | C31: Food Provisions & Gas | D31: =13669+810 -> 14479 | E31: 0
A32: 09.08.2012 | B32: 18412 | C32: Food Provisions & Vegtables,Milk | D32: =15803+501 -> 16304 | E32: 2108
A33: 27.08.2012 | B33: 2709 | C33: Vegtables & Gas | D33: =1230+1479 -> 2709 | E33: 0
A34: 07.09.2012 | B34: 19680 | C34: Food Provisions & Vegtables,Milk | D34: =16893+503+244 -> 17640 | E34: 2040
A35: 25.09.2012 | B35: 2023 | C35: Vegtables & Gas | D35: =1513+410+100 -> 2023 | E35: 0
B36: =SUM(B28:B35) -> 82016
A37: TOTAL | B37: =B26+B36 -> 207086 | D37: =SUM(D12:D36) -> 185404 | E37: =SUM(E12:E36) -> 21682
A39: RENT
A40: 04.04.2012 | C40: 30000
A41: 05.05.2012 | C41: 30000
A42: 09.08.2012 | C42: 60000
A43: 05.09.2012 | C43: 60000
A44: 4.10.2012 | C44: 30000
A45: 5.11.2012 | C45: 30000
A46: 5.12.2012 | C46: 35000
A47: 5.01.2013 | C47: 35000
A48: 5.02.2013 | C48: 35000
A49: 6.03.2013 | C49: 35000
A50: 30.03.2013 | C50: 35000
A52: TOTAL | C52: =SUM(C40:C51) -> 415000

Sheet Donations-2012-13 (hidden)
D3: Donations Received for the Year 2012-13
C6: a) | D6: Asha:
E7: Date | F7: Amount
E8: 10.9.2012 | F8: 500044.91
E9: 23.01.2013 | F9: 799630
E10: Total | F10: =SUM(F8:F9) -> 1299674.91
C12: b) | D12: Non Asha: (Indian Donations)
D14: Donations Received in Cash
D15: i) Spandana Educational Trust | E15: Date | F15: Amount
E16: 28.08.2012 | F16: 200000
E17: 15.01.2013 | F17: 42000
E18: 16.01.2013 | F18: 42000
E19: 15.02.2013 | F19: 42000
E20: 15.03.2013 | F20: 42000
E21: Total | F21: =SUM(F16:F20) -> 368000
D23: ii)M S Raju | E23: 5.12.2012 | F23: 500
E24: 18.12.2012 | F24: 1000
E25: 28.12.2012 | F25: 1000
E26: 07.11.2012 | F26: 1500
E27: 07.02.2013 | F27: 1000
E28: 31.03.2013 | F28: 1000
E29: Total | F29: =SUM(F23:F28) -> 6000
D31: iii) Others | E31: Up to 31.03.2013 | F31: =700+10000+3500+3500+3500+3500+3500+10000+261+551+3500+5001+1000+3500+3500+5000+6000+3500+3000+3500+5000 -> 81513
E32: Hundi Collection | F32: 1375
E33: Total (Non Asha Cash) | F33: =F21+F29+F31 -> 455513
D35: Donations Received in Kind | F35: 7500
E37: Total Donations | F37: =F33+F35+F32 -> 464388
D39: SUMMARY
D40: Asha | E40: =F10 -> 1299674.91
D41: Non Asha (Indian Donations) | E41: =F37 -> 464388
E42: =SUM(E40:E41) -> 1764062.91

Sheet Expenses 2013-14
B2: SRI SAI SEVA SADAN
B3: SUMMARY OF EXPENSES (2013-14)
C4: (Audited)
B5: Particulars | C5: Amount (`)
B7: Admistration Expenses
B8: Raw Materials Purchases | C8: 34770
B9: Advertisement | C9: 4000.11
B10: Bank Charges | C10: 112
B11: Conveyance | C11: 2788
B12: Electricity Charges | C12: 22909
B13: Medical Expenses | C13: 6814
B14: Misc. Expenses | C14: 4499
B15: Postage & Telegram | C15: 684
B16: Printing & Stationary | C16: 4365
B17: Repairs & Maintenance | C17: 8547
B18: Telephone Expenses | C18: 10138
B19: Travelling Expenses | C19: 1643.6
B20: Transportation Expenses | C20: 1700
B21: Interest paid on T.D.S. | C21: 35002
B22: Total | C22: =SUM(C8:C21) -> 137971.71
B24: Salaries & Wages | C24: 637990.4
B25: Rent | C25: 385000
B26: Food Expenses | C26: 196851.4
B27: Total | C27: =SUM(C24:C26) -> 1219841.8
B29: Grand Total | C29: =+C27+C22 -> 1357813.51
B32: Caluclation of Expenditure per Student :
B34: Particulars | C34: Amount (`)
B35: Number of Students (19 Residential+10Day care) | C35: 29
B36: Expenditure/Student/Year | C36: =C29/C35 -> 46821.15552
B37: Expenditure/Student/Month | C37: =C36/12 -> 3901.76296

Sheet Budget 2014-15
B1: SRI SAI SEVA SADAN
B2: HYDERABAD
B3: Budget Estimation for the Year 2014-15
B4: A scheme showing the financial commitment for 25 moderate and mild learning disability children/ adolescent in Fostercare home (Residential Special school/ Day care school) of Residential and 20 Day care Students.
C6: Particulars | G6: No.of posts | H6: Salary for each post | I6: Expenditure per month
B7: A | C7: Full Time Staff
C8: Warden | G8: 1 | H8: 11000 | I8: =G8*H8 -> 11000
C9: Foster Care Father | G9: 1 | H9: 5500 | I9: =G9*H9 -> 5500
C10: Special Educator
C11: 1 Teacher for Every 6 Students | G11: 4 | H11: 10000 | I11: 40000
C12: Sr.Splecial Educator | G12: 1 | H12: 13000 | I12: 13000
C13: Resident Administrator cum Accounts | G13: 1 | H13: 10000 | I13: 10000
C14: Cook | G14: 1 | H14: 6500 | I14: 6500
C15: Helpers | G15: 2 | H15: 4000 | I15: 8000
C16: Driver | G16: 1 | H16: 11000 | I16: 11000
F17: Sub Total | I17: =SUM(I8:I16) -> 105000
B18: B | C18: Part Time Staff
C19: Psychiatric Doctor | G19: 1 | H19: 10000 | I19: =G19*H19 -> 10000
C20: Speech Therapyst | G20: 1 | H20: 10000 | I20: 10000
C21: Tabala/ Key Board Master | G21: 1 | H21: 3000 | I21: 3000
C22: Yoga Master | G22: 1 | H22: 3000 | I22: 3000
F23: Sub Total | I23: =SUM(I19:I22) -> 26000
B25: C | C25: Other Recurring Expenditure
C26: Boarding Expenses at Rs.40/- Student/ Day
C27: For 30 days for 25 students | I27: =30*25*40 -> 30000
C28: Rent for 2 Floors (4,000 sq.ft.) | I28: 40000
C29: Transportation & Conveyance | I29: 1000
C30: Water & Electricity Expenses | I30: 3000
C31: Telephone Expenses | I31: 4000
C32: Medical Expenses | I32: 1000
C33: Miscellaneous Expenses | I33: 2000
C34: Printing and Stationery | I34: 2000
C35: Diesel Expenses for School Bus | I35: 7000
C36: Vehicle Maintenance for School Bus | I36: 500
C37: Road Tax for School Bus | I37: 2000
C38: Insurance | I38: 1000
I39: =SUM(I27:I38) -> 93500
B40: D | C40: Non - Recurring Expenditure
C41: Student Desk, Benches & Other Equipments | I41: 6000
I42: =SUM(I41) -> 6000
C47: SUMMARY
C49: Particulars | H49: Per Month | I49: Per Annuam
B51: A | C51: Full Time Staff | H51: =I17 -> 105000 | I51: =H51*12 -> 1260000
B52: B | C52: Part Time Staff | H52: =I23 -> 26000 | I52: =H52*12 -> 312000
B53: C | C53: Other Recurring Expenditure | H53: =I39 -> 93500 | I53: 1122000
H54: =SUM(H51:H53) -> 224500 | I54: =SUM(I51:I53) -> 2694000
B55: D | C55: Non - Recurring Expenditure | I55: =I42 -> 6000
C57: Total Funds required for the Year | I57: =SUM(I54:I56) -> 2700000
B59: a) | C59: 80% of the funds from Asha for Educaion, USA | I59: =I57*80% -> 2160000
B60: b) | C60: 20% of the funds to be organised by Sri Sai Seva Sadan | I60: =I57*20% -> 540000
I61: =SUM(I59:I60) -> 2700000

Sheet Donation 2013-14
D1: SRI SAI SEVA SADAN
D2: Donations Received for the Year 2013-14
C4: a) | D4: Asha for Education:
E5: Date | F5: Amount
E6: 11.06.2013 | F6: 806000
E7: Total | F7: =SUM(F6:F6) -> 806000
C8: b) | D8: Otherthan Asha for Education (Indian Donations):
D10: Donations Received in Cash:
D11: i) Spandana Educational Trust
E12: Date | F12: Amount
E13: 26.04.2013 | F13: 42000
E14: 15.05.2013 | F14: 42000
E15: 15.06.2013 | F15: 42000
E16: 15.07.2013 | F16: 42000
E17: 30.08.2013 | F17: 42000
E18: 16.09.2013 | F18: 42000
E19: 15.10.2013 | F19: 42000
E20: 19.12.2013 | F20: 42000
E21: 15.01.2014 | F21: 42000
E22: 15.02.2014 | F22: 42000
E23: 15.03.2014 | F23: 42000
E24: Total | F24: =SUM(F13:F23) -> 462000
D26: ii)M S Raju | E26: 30.04.2013 | F26: 2000
E27: 10.07.2013 | F27: 2000
E28: 06.08.2013 | F28: 2000
E29: 23.09.2013 | F29: 1500
E30: 14.10.2013 | F30: 1500
E31: 01.11.2013 | F31: 1500
E32: 15.01.2014 | F32: 1500
E33: 05.02.2014 | F33: 1500
E34: 07.03.2014 | F34: 1500
F35: =SUM(F26:F34) -> 15000
D37: iv) Corpus Fund Donations | F37: 68002
D39: iii) Others Donations | F39: =3500+5000+3100+2500+2500+10001+1000+4000+500+6000+10000 -> 48101
D41: iv) Hundi Collection | F41: 6044
E42: Total | F42: =+F41+F39+F35+F24+F37 -> 599147
E44: Grand Total | F44: =+F42+F7 -> 1405147
E46: Summary
D47: Donations from Asha for Education | H47: =F7 -> 806000
D48: Donations from Otherthan Asha for Education(Indian Donations): | H48: =+F42 -> 599147
H49: =SUM(H47:H48) -> 1405147
